[Event "48th Continental Open"]
[Site "Sturbridge, MA"]
[Date "2018.08.19"]
[Round "7.14"]
[White "Kavi, Nithin"]
[Black "Padmanabhan, Karthik"]
[Result "1/2-1/2"]
[ECO "A13"]
[WhiteElo "1995"]
[BlackElo "1879"]
[PlyCount "65"]
[EventDate "2018.08.??"]
[EventType "swiss"]
[EventRounds "9"]
[EventCountry "USA"]
[TimeControl "6000+10"]
[WhiteClock "1:26:10"]
[BlackClock "0:04:32"]

1. Nf3 {[%emt 0:00:10]} Nf6 {[%emt 0:05:14]} 2. c4 {[%emt 0:00:11]} e6 {
[%emt 0:05:29]} 3. g3 {[%emt 0:00:11]} d5 {[%emt 0:01:17]} 4. d4 {[%emt 0:00:
11]} Be7 {[%emt 0:02:43]} 5. Bg2 {[%emt 0:00:11]} O-O {[%emt 0:00:10]} 6. O-O {
[%emt 0:00:24]} dxc4 {[%emt 0:00:38]} 7. Qc2 {[%emt 0:00:10]} a6 {[%emt 0:00:
29]} 8. a4 {[%emt 0:00:11]} a5 {[%emt 0:01:42]} 9. Qxc4 {[%emt 0:05:13]} Na6 {
[%emt 0:02:57]} 10. Bf4 {[%emt 0:00:10]} Nd5 {[%emt 0:13:09]} 11. Bd2 {[%emt 0:
00:11]} Nab4 {[%emt 0:01:04]} 12. Nc3 {[%emt 0:03:19]} c6 {[%emt 0:04:14]} 13.
e4 {[%emt 0:05:23]} Nf6 {[%emt 0:14:18]} 14. Qb3 {[%emt 0:00:10]} b6 {[%emt 0:
13:43]} 15. Rfe1 {[%emt 0:00:10]} Ba6 {[%emt 0:02:47]} 16. Na2 {[%emt 0:00:10]}
Nd3 {[%emt 0:18:32]} 17. Re3 {[%emt 0:00:10]} c5 {[%emt 0:03:52]} 18. Qc2 {
[%emt 0:00:10]} c4 {[%emt 0:09:51]} 19. h3 {[%emt 0:00:11]} Rc8 {[%emt 0:00:00]
} 20. Bc3 {[%emt 0:00:11]} Nb4 {[%emt 0:00:00]} 21. Qd2 {[%emt 0:00:10]} Bb7 {
[%emt 0:00:00]} 22. Ne5 {[%emt 0:00:10]} Nd7 {[%emt 0:00:00]} 23. Nxd7 {
[%emt 0:00:10]} Qxd7 {[%emt 0:00:00]} 24. Nxb4 {[%emt 0:00:10]} axb4 {[%emt 0:
00:00]} 25. Bxb4 {[%emt 0:00:10]} Bxb4 {[%emt 0:00:00]} 26. Qxb4 {[%emt 0:00:
11]} Qxd4 {[%emt 0:00:00]} 27. a5 {[%emt 0:00:10]} Qc5 {[%emt 0:00:00]} 28.
Qxc5 {[%emt 0:00:10]} Rxc5 {[%emt 0:00:00]} 29. a6 {[%emt 0:00:10]} Ba8 {
[%emt 0:00:00]} 30. Rc3 {[%emt 0:00:10]} Rfc8 {[%emt 0:00:00]} 31. e5 {[%emt 0:
00:11]} b5 {[%emt 0:01:50]} 32. Bb7 {[%emt 0:00:11]} Rb8 {[%emt 0:00:00]} 33.
Bxa8 {[%emt 0:00:10]} 1/2-1/2

[Event "48th Continental Open"]
[Site "Sturbridge, MA"]
[Date "2018.08.19"]
[Round "7.16"]
[White "Riddell, John"]
[Black "Kang, Dorian"]
[Result "0-1"]
[ECO "B31"]
[WhiteElo "2103"]
[BlackElo "1853"]
[PlyCount "62"]
[EventDate "2018.08.??"]
[EventType "swiss"]
[EventRounds "9"]
[EventCountry "USA"]
[TimeControl "6000+10"]
[WhiteClock "0:00:02"]
[BlackClock "0:13:50"]

1. e4 {[%emt 0:00:10]} c5 2. Nf3 {[%emt 0:00:18]} Nc6 {[%emt 0:00:34]} 3. Bb5 {
[%emt 0:00:19]} g6 {[%emt 0:00:19]} 4. O-O {[%emt 0:00:29]} Bg7 {[%emt 0:00:13]
} 5. Re1 {[%emt 0:00:30]} Nf6 {[%emt 0:01:21]} 6. c3 {[%emt 0:08:39]} O-O {
[%emt 0:06:58]} 7. d4 {[%emt 0:06:51]} d5 {[%emt 0:08:42]} 8. exd5 {[%emt 0:07:
10]} Qxd5 {[%emt 0:04:10]} 9. c4 {[%emt 0:15:11]} Qd6 {[%emt 0:02:31]} 10. dxc5
{[%emt 0:11:06]} Qxc5 {[%emt 0:01:20]} 11. Be3 {[%emt 0:02:14]} Qh5 {[%emt 0:
06:41]} 12. h3 {[%emt 0:29:26]} Rd8 {[%emt 0:12:30]} 13. Qe2 {[%emt 0:04:33]}
Bf5 {[%emt 0:10:38]} 14. Nbd2 {[%emt 0:09:29]} Nb4 {[%emt 0:05:15]} 15. Nf1 {
[%emt 0:01:42]} Bd3 {[%emt 0:02:23]} 16. Qd2 {[%emt 0:00:10]} Bxc4 {[%emt 0:04:
12]} 17. Qxb4 {[%emt 0:00:14]} Qxb5 {[%emt 0:00:17]} 18. Qxe7 {[%emt 0:00:50]}
Nd5 {[%emt 0:05:47]} 19. Qh4 {[%emt 0:00:13]} Bxf1 {[%emt 0:07:24]} 20. Rxf1 {
[%emt 0:00:26]} Nxe3 {[%emt 0:08:06]} 21. fxe3 {[%emt 0:00:14]} h6 {[%emt 0:00:
11]} 22. Rf2 {[%emt 0:03:12]} Rd7 {[%emt 0:00:13]} 23. Raf1 {[%emt 0:00:16]}
Re8 {[%emt 0:00:13]} 24. Nd4 {[%emt 0:00:12]} Qd5 {[%emt 0:00:10]} 25. Qf4 {
[%emt 0:00:13]} Kh7 {[%emt 0:00:10]} 26. b3 {[%emt 0:00:12]} f5 {[%emt 0:00:10]
} 27. Rd2 {[%emt 0:00:10]} Re4 {[%emt 0:00:10]} 28. Qb8 {[%emt 0:00:10]} Qa5 {
[%emt 0:00:14]} 29. Rfd1 {[%emt 0:00:11]} Rxe3 {[%emt 0:00:17]} 30. Nf3 {
[%emt 0:00:08]} Rxd2 {[%emt 0:00:11]} 31. Rxd2 {[%emt 0:00:10]} Rxf3 {[%emt 0:
00:10]} 0-1

[Event "48th Continental Open"]
[Site "Sturbridge, MA"]
[Date "2018.08.19"]
[Round "7.17"]
[White "Zhao, Jeffrey Renfei"]
[Black "Taylor, Steven"]
[Result "1-0"]
[ECO "B56"]
[WhiteElo "1827"]
[BlackElo "2081"]
[PlyCount "67"]
[EventDate "2018.08.??"]
[EventType "swiss"]
[EventRounds "9"]
[EventCountry "USA"]
[TimeControl "6000+10"]
[WhiteClock "0:49:17"]
[BlackClock "0:25:29"]

1. e4 {[%emt 0:00:10]} c5 2. Nf3 {[%emt 0:00:13]} Nc6 {[%emt 0:00:38]} 3. d4 {
[%emt 0:00:11]} cxd4 {[%emt 0:00:30]} 4. Nxd4 {[%emt 0:00:14]} Nf6 {[%emt 0:00:
32]} 5. Nc3 {[%emt 0:00:13]} d6 {[%emt 0:00:34]} 6. f3 {[%emt 0:01:37]} e5 {
[%emt 0:02:07]} 7. Nb3 {[%emt 0:01:00]} Be6 {[%emt 0:02:14]} 8. Be3 {[%emt 0:
00:33]} d5 {[%emt 0:15:15]} 9. exd5 {[%emt 0:05:15]} Nxd5 {[%emt 0:04:37]} 10.
Nxd5 {[%emt 0:00:35]} Bxd5 {[%emt 0:15:02]} 11. Qd2 {[%emt 0:00:36]} Bxb3 {
[%emt 0:03:08]} 12. axb3 {[%emt 0:00:33]} Qc7 {[%emt 0:03:00]} 13. Bb5 {
[%emt 0:06:47]} Be7 {[%emt 0:05:07]} 14. O-O {[%emt 0:00:11]} O-O {[%emt 0:01:
39]} 15. Qc3 {[%emt 0:00:10]} Bf6 {[%emt 0:00:11]} 16. Bxc6 {[%emt 0:00:10]}
bxc6 {[%emt 0:02:08]} 17. Qa5 {[%emt 0:01:48]} Qd7 {[%emt 0:04:17]} 18. Rfd1 {
[%emt 0:02:54]} Qf5 {[%emt 0:00:23]} 19. Rd3 {[%emt 0:07:33]} Rfd8 {[%emt 0:05:
21]} 20. Rad1 {[%emt 0:01:35]} Rxd3 {[%emt 0:01:49]} 21. Rxd3 {[%emt 0:00:22]}
h5 {[%emt 0:00:18]} 22. Qa4 {[%emt 0:12:35]} a5 {[%emt 0:02:24]} 23. Qe4 {
[%emt 0:03:43]} Qxe4 {[%emt 0:04:08]} 24. fxe4 {[%emt 0:00:21]} a4 {[%emt 0:00:
10]} 25. Kf2 {[%emt 0:01:37]} a3 {[%emt 0:00:56]} 26. bxa3 {[%emt 0:00:33]}
Rxa3 {[%emt 0:00:11]} 27. Rd6 {[%emt 0:00:12]} Ra6 {[%emt 0:00:11]} 28. b4 {
[%emt 0:00:31]} Be7 {[%emt 0:01:26]} 29. b5 {[%emt 0:00:32]} Ra4 {[%emt 0:00:
17]} 30. Rxc6 {[%emt 0:00:22]} Rxe4 {[%emt 0:00:20]} 31. c4 {[%emt 0:01:53]} f5
{[%emt 0:00:44]} 32. b6 {[%emt 0:00:33]} f4 {[%emt 0:00:14]} 33. b7 {[%emt 0:
00:38]} fxe3+ {[%emt 0:00:20]} 34. Ke2 {[%emt 0:00:13]} 1-0

[Event "48th Continental Open"]
[Site "Sturbridge, MA"]
[Date "2018.08.19"]
[Round "7.20"]
[White "Slade, Theo"]
[Black "Yu, Alex"]
[Result "1/2-1/2"]
[ECO "D87"]
[WhiteElo "1960"]
[BlackElo "1852"]
[PlyCount "112"]
[EventDate "2018.08.??"]
[EventType "swiss"]
[EventRounds "9"]
[EventCountry "USA"]
[TimeControl "6000+10"]
[WhiteClock "0:00:04"]
[BlackClock "0:00:30"]

1. d4 {[%emt 0:00:10]} Nf6 {[%emt 0:00:42]} 2. c4 {[%emt 0:00:21]} g6 {[%emt 0:
00:29]} 3. Nc3 {[%emt 0:00:20]} d5 {[%emt 0:00:54]} 4. cxd5 {[%emt 0:01:30]}
Nxd5 {[%emt 0:00:19]} 5. e4 {[%emt 0:00:17]} Nxc3 {[%emt 0:00:21]} 6. bxc3 {
[%emt 0:00:10]} Bg7 {[%emt 0:00:18]} 7. Bc4 {[%emt 0:01:45]} c5 {[%emt 0:00:11]
} 8. Ne2 {[%emt 0:00:30]} O-O {[%emt 0:00:45]} 9. O-O {[%emt 0:02:31]} Nc6 {
[%emt 0:01:01]} 10. Be3 {[%emt 0:01:04]} e5 {[%emt 0:10:15]} 11. dxc5 {[%emt 0:
09:26]} Bd7 {[%emt 0:23:45]} 12. Bg5 {[%emt 0:22:54]} Qxg5 {[%emt 0:04:04]} 13.
Qxd7 {[%emt 0:02:13]} Qe7 {[%emt 0:07:02]} 14. Qxe7 {[%emt 0:07:45]} Nxe7 {
[%emt 0:00:20]} 15. Rab1 {[%emt 0:01:54]} Rab8 {[%emt 0:17:11]} 16. Bd5 {
[%emt 0:11:49]} Nxd5 {[%emt 0:10:27]} 17. exd5 {[%emt 0:00:10]} Rfc8 {[%emt 0:
00:44]} 18. Rb5 {[%emt 0:04:57]} Bf8 {[%emt 0:02:57]} 19. d6 {[%emt 0:01:30]}
a6 {[%emt 0:10:15]} 20. Ra5 {[%emt 0:00:11]} b6 {[%emt 0:00:53]} 21. cxb6 {
[%emt 0:14:02]} Rxb6 {[%emt 0:00:40]} 22. Rxe5 {[%emt 0:01:09]} Bxd6 {[%emt 0:
00:11]} 23. Re4 {[%emt 0:14:38]} Rb2 {[%emt 0:00:11]} 24. a4 {[%emt 0:00:13]}
Ra2 {[%emt 0:00:10]} 25. Rd1 {[%emt 0:00:13]} Rb8 {[%emt 0:00:11]} 26. g3 {
[%emt 0:00:14]} Bc5 {[%emt 0:00:10]} 27. Rd5 {[%emt 0:00:13]} Rb1+ {[%emt 0:00:
10]} 28. Kg2 {[%emt 0:00:11]} Bb6 {[%emt 0:00:10]} 29. Rd6 {[%emt 0:00:00]}
Rbb2 {[%emt 0:00:10]} 30. Kf3 {[%emt 0:00:00]} a5 {[%emt 0:00:10]} 31. Rd5 {
[%emt 0:01:29]} Kg7 {[%emt 0:00:11]} 32. Rd7 {[%emt 0:01:12]} Bc5 {[%emt 0:00:
10]} 33. Rc7 {[%emt 0:00:00]} Bb6 {[%emt 0:00:10]} 34. Rb7 {[%emt 0:00:00]} Kg8
{[%emt 0:00:10]} 35. Re8+ {[%emt 0:00:00]} Kg7 {[%emt 0:00:10]} 36. Ree7 {
[%emt 0:00:01]} Kg8 {[%emt 0:00:10]} 37. c4 {[%emt 0:00:00]} Bc5 {[%emt 0:00:
14]} 38. Rxb2 {[%emt 0:00:00]} Rxb2 {[%emt 0:00:10]} 39. Re5 {[%emt 0:00:00]}
Bb4 {[%emt 0:00:10]} 40. Ke3 {[%emt 0:00:00]} Ra2 {[%emt 0:00:10]} 41. c5 {
[%emt 0:00:00]} Rc2 {[%emt 0:07:25]} 42. Kd3 {[%emt 0:00:34]} Rxc5 {[%emt 0:02:
43]} 43. Rxc5 {[%emt 0:00:19]} Bxc5 {[%emt 0:00:10]} 44. Nd4 {[%emt 0:00:00]}
Kg7 {[%emt 0:00:00]} 45. Kc4 {[%emt 0:00:00]} Bb6 {[%emt 0:00:00]} 46. f3 {
[%emt 0:00:00]} Kf6 {[%emt 0:00:02]} 47. Nc6 {[%emt 0:00:38]} Bg1 {[%emt 0:00:
00]} 48. h3 {[%emt 0:00:00]} Bf2 {[%emt 0:00:00]} 49. g4 {[%emt 0:00:00]} Kg5 {
[%emt 0:00:01]} 50. Nxa5 {[%emt 0:01:38]} Kh4 {[%emt 0:00:10]} 51. Nc6 {
[%emt 0:00:00]} Be1 {[%emt 0:00:11]} 52. a5 {[%emt 0:00:00]} Bxa5 {[%emt 0:00:
12]} 53. Nxa5 {[%emt 0:00:00]} Kxh3 {[%emt 0:00:10]} 54. g5 {[%emt 0:00:00]}
Kh4 {[%emt 0:00:10]} 55. Kd3 {[%emt 0:00:55]} Kxg5 {[%emt 0:00:11]} 56. Ke2 {
[%emt 0:00:10]} Kf4 {[%emt 0:00:44]} 1/2-1/2

[Event "48th Continental Open"]
[Site "Sturbridge, MA"]
[Date "2018.08.19"]
[Round "7.21"]
[White "Song, Alan"]
[Black "Procyk, Marijan"]
[Result "1-0"]
[ECO "B78"]
[WhiteElo "2043"]
[BlackElo "1940"]
[PlyCount "67"]
[EventDate "2018.08.??"]
[EventType "swiss"]
[EventRounds "9"]
[EventCountry "USA"]
[TimeControl "6000+10"]
[WhiteClock "0:16:21"]
[BlackClock "1:05:22"]

1. e4 {[%emt 0:00:10]} c5 {[%emt 0:00:28]} 2. Nf3 {[%emt 0:00:24]} d6 {[%emt 0:
00:17]} 3. d4 {[%emt 0:00:16]} cxd4 {[%emt 0:00:17]} 4. Nxd4 {[%emt 0:00:16]}
Nf6 {[%emt 0:00:18]} 5. Nc3 {[%emt 0:00:11]} g6 {[%emt 0:00:15]} 6. Be3 {
[%emt 0:00:20]} Bg7 {[%emt 0:00:16]} 7. f3 {[%emt 0:00:13]} O-O {[%emt 0:00:19]
} 8. Bc4 {[%emt 0:00:21]} Bd7 {[%emt 0:00:24]} 9. Qd2 {[%emt 0:00:13]} Nc6 {
[%emt 0:00:16]} 10. O-O-O {[%emt 0:00:14]} Rc8 {[%emt 0:00:32]} 11. Bb3 {
[%emt 0:00:12]} Ne5 {[%emt 0:00:20]} 12. Kb1 {[%emt 0:00:26]} Nc4 {[%emt 0:00:
33]} 13. Bxc4 {[%emt 0:00:15]} Rxc4 {[%emt 0:00:16]} 14. g4 {[%emt 0:00:30]}
Qb8 {[%emt 0:01:25]} 15. h4 {[%emt 0:01:17]} h5 {[%emt 0:00:18]} 16. gxh5 {
[%emt 0:03:05]} Nxh5 {[%emt 0:00:17]} 17. b3 {[%emt 0:00:20]} Rc5 {[%emt 0:01:
00]} 18. Nd5 {[%emt 0:00:53]} e6 {[%emt 0:03:11]} 19. Ne7+ {[%emt 0:01:39]} Kh7
{[%emt 0:00:24]} 20. Ndf5 {[%emt 0:01:36]} exf5 {[%emt 0:00:29]} 21. Bxc5 {
[%emt 0:00:19]} dxc5 {[%emt 0:00:21]} 22. Qd5 {[%emt 0:37:33]} Be6 {[%emt 0:02:
36]} 23. Qxc5 {[%emt 0:00:31]} b6 {[%emt 0:00:25]} 24. Qd6 {[%emt 0:02:48]} Qb7
{[%emt 0:04:15]} 25. Nxg6 {[%emt 0:08:50]} fxg6 {[%emt 0:05:33]} 26. Qxe6 {
[%emt 0:00:54]} Nf4 {[%emt 0:00:44]} 27. Rd7 {[%emt 0:03:31]} Qb8 {[%emt 0:06:
26]} 28. Qe7 {[%emt 0:00:35]} Nh5 {[%emt 0:00:17]} 29. Rb7 {[%emt 0:03:37]} Qc8
{[%emt 0:00:44]} 30. Rc7 {[%emt 0:00:51]} Qb8 {[%emt 0:00:31]} 31. Rg1 {
[%emt 0:05:11]} fxe4 {[%emt 0:01:12]} 32. Rg5 {[%emt 0:08:45]} Rg8 {[%emt 0:02:
44]} 33. Qxe4 {[%emt 0:01:02]} Qxc7 {[%emt 0:02:55]} 34. Qxg6+ {[%emt 0:02:01]}
1-0

[Event "48th Continental Open"]
[Site "Sturbridge, MA"]
[Date "2018.08.19"]
[Round "7.23"]
[White "Belous, Nicholas"]
[Black "Sage, J Timothy"]
[Result "1/2-1/2"]
[ECO "B00"]
[WhiteElo "1852"]
[BlackElo "2036"]
[PlyCount "57"]
[EventDate "2018.08.??"]
[EventType "swiss"]
[EventRounds "9"]
[EventCountry "USA"]
[TimeControl "6000+10"]
[WhiteClock "0:59:14"]
[BlackClock "0:21:06"]

1. e4 {[%emt 0:00:10]} Nc6 {[%emt 0:00:21]} 2. Nf3 {[%emt 0:00:12]} d6 {
[%emt 0:00:11]} 3. d4 {[%emt 0:00:12]} Nf6 {[%emt 0:00:13]} 4. Nc3 {[%emt 0:00:
14]} g6 {[%emt 0:00:12]} 5. Be3 {[%emt 0:00:12]} Bg7 {[%emt 0:00:11]} 6. h3 {
[%emt 0:00:11]} O-O {[%emt 0:00:13]} 7. Qd2 {[%emt 0:00:12]} e5 {[%emt 0:00:11]
} 8. dxe5 {[%emt 0:04:02]} Nxe5 {[%emt 0:00:35]} 9. Nxe5 {[%emt 0:01:14]} dxe5
{[%emt 0:00:17]} 10. Bc4 {[%emt 0:05:38]} c6 {[%emt 0:05:03]} 11. a3 {[%emt 0:
04:25]} Qe7 {[%emt 0:13:04]} 12. O-O-O {[%emt 0:01:00]} b5 {[%emt 0:04:27]} 13.
Bb3 {[%emt 0:02:06]} a5 {[%emt 0:01:19]} 14. f3 {[%emt 0:02:48]} a4 {[%emt 0:
08:09]} 15. Ba2 {[%emt 0:01:07]} b4 {[%emt 0:01:45]} 16. axb4 {[%emt 0:00:22]}
Qxb4 {[%emt 0:01:26]} 17. Qd6 {[%emt 0:00:56]} Qb7 {[%emt 0:05:50]} 18. Qa3 {
[%emt 0:06:20]} Re8 {[%emt 0:06:06]} 19. Bc5 {[%emt 0:01:40]} Nd7 {[%emt 0:03:
01]} 20. Bd6 {[%emt 0:02:11]} Nf8 {[%emt 0:06:41]} 21. Qb4 {[%emt 0:01:45]} Ne6
{[%emt 0:11:31]} 22. Qxb7 {[%emt 0:01:09]} Bxb7 {[%emt 0:00:10]} 23. Bxe6 {
[%emt 0:01:35]} Rxe6 {[%emt 0:00:10]} 24. Bc5 {[%emt 0:01:04]} Bf8 {[%emt 0:11:
38]} 25. Bxf8 {[%emt 0:01:39]} Kxf8 {[%emt 0:00:10]} 26. Rd7 {[%emt 0:00:53]}
Re7 {[%emt 0:00:10]} 27. Rhd1 {[%emt 0:00:30]} Ke8 {[%emt 0:00:30]} 28. Rxe7+ {
[%emt 0:00:59]} Kxe7 {[%emt 0:00:10]} 29. Na2 {[%emt 0:00:50]} 1/2-1/2

[Event "48th Continental Open"]
[Site "Sturbridge, MA"]
[Date "2018.08.19"]
[Round "7.24"]
[White "Riddell, Connor"]
[Black "Luo, Ryan"]
[Result "1/2-1/2"]
[ECO "B18"]
[WhiteElo "1716"]
[BlackElo "1805"]
[PlyCount "41"]
[EventDate "2018.08.??"]
[EventType "swiss"]
[EventRounds "9"]
[EventCountry "USA"]
[TimeControl "6000+10"]
[WhiteClock "0:34:36"]
[BlackClock "0:20:36"]

1. e4 {[%emt 0:00:10]} c6 {[%emt 0:00:52]} 2. d4 {[%emt 0:00:17]} d5 {[%emt 0:
00:13]} 3. Nc3 {[%emt 0:00:16]} dxe4 {[%emt 0:00:14]} 4. Nxe4 {[%emt 0:00:15]}
Bf5 {[%emt 0:00:14]} 5. Ng3 {[%emt 0:00:15]} Bg6 {[%emt 0:00:13]} 6. Nf3 {
[%emt 0:00:14]} Nd7 {[%emt 0:00:15]} 7. Bd3 {[%emt 0:00:14]} e6 {[%emt 0:00:26]
} 8. O-O {[%emt 0:00:14]} Ngf6 {[%emt 0:00:41]} 9. Bxg6 {[%emt 0:00:15]} hxg6 {
[%emt 0:00:22]} 10. Re1 {[%emt 0:22:48]} Qc7 {[%emt 0:18:25]} 11. Ng5 {[%emt 0:
06:57]} Be7 {[%emt 0:15:57]} 12. Qd3 {[%emt 0:07:06]} Nf8 {[%emt 0:06:27]} 13.
Qf3 {[%emt 0:11:56]} N8h7 {[%emt 0:09:50]} 14. N5e4 {[%emt 0:00:41]} Qa5 {
[%emt 0:15:08]} 15. Bd2 {[%emt 0:02:31]} Qd5 {[%emt 0:00:42]} 16. Nxf6+ {
[%emt 0:01:44]} Nxf6 {[%emt 0:05:01]} 17. Qxd5 {[%emt 0:01:45]} cxd5 {[%emt 0:
00:39]} 18. a4 {[%emt 0:04:17]} Rc8 {[%emt 0:05:14]} 19. c3 {[%emt 0:06:01]}
Bd6 {[%emt 0:00:13]} 20. f3 {[%emt 0:00:26]} Kd7 {[%emt 0:01:48]} 21. Nf1 {
[%emt 0:00:32]} 1/2-1/2

[Event "48th Continental Open"]
[Site "Sturbridge, MA"]
[Date "2018.08.19"]
[Round "8.3"]
[White "Otchiyev, Arslan"]
[Black "Gorovets, Andrey"]
[Result "1/2-1/2"]
[ECO "B18"]
[WhiteElo "2333"]
[BlackElo "2495"]
[PlyCount "53"]
[EventDate "2018.08.??"]
[EventType "swiss"]
[EventRounds "9"]
[EventCountry "USA"]
[TimeControl "6000+10"]
[WhiteClock "1:35:09"]
[BlackClock "0:28:33"]

1. e4 {[%emt 0:00:10]} c6 {[%emt 0:05:14]} 2. d4 {[%emt 0:00:11]} d5 {[%emt 0:
00:12]} 3. Nd2 {[%emt 0:00:11]} dxe4 {[%emt 0:00:23]} 4. Nxe4 {[%emt 0:00:11]}
Bf5 {[%emt 0:00:14]} 5. Ng3 {[%emt 0:00:11]} Bg6 {[%emt 0:00:25]} 6. h4 {
[%emt 0:00:11]} h6 {[%emt 0:00:11]} 7. h5 {[%emt 0:00:11]} Bh7 {[%emt 0:00:20]}
8. Nf3 {[%emt 0:00:11]} e6 {[%emt 0:03:15]} 9. Bd3 {[%emt 0:00:11]} Bxd3 {
[%emt 0:00:42]} 10. Qxd3 {[%emt 0:00:11]} Nf6 {[%emt 0:00:42]} 11. Bd2 {
[%emt 0:00:10]} Be7 {[%emt 0:03:15]} 12. O-O-O {[%emt 0:00:11]} O-O {[%emt 0:
01:13]} 13. Kb1 {[%emt 0:00:10]} c5 {[%emt 0:14:42]} 14. Ne4 {[%emt 0:00:11]}
Nc6 {[%emt 0:09:40]} 15. Nxf6+ {[%emt 0:00:10]} Bxf6 {[%emt 0:00:10]} 16. dxc5
{[%emt 0:01:22]} Qxd3 {[%emt 0:00:52]} 17. cxd3 {[%emt 0:00:10]} Rfd8 {[%emt 0:
03:24]} 18. Bc3 {[%emt 0:00:10]} Rd5 {[%emt 0:07:00]} 19. Bxf6 {[%emt 0:00:11]}
gxf6 {[%emt 0:00:11]} 20. d4 {[%emt 0:00:11]} Rad8 {[%emt 0:00:11]} 21. Rc1 {
[%emt 0:02:13]} Nxd4 {[%emt 0:03:04]} 22. Nxd4 {[%emt 0:00:11]} Rxd4 {[%emt 0:
00:10]} 23. Rh3 {[%emt 0:01:32]} Rd2 {[%emt 0:11:10]} 24. Rc2 {[%emt 0:00:10]}
Rd1+ {[%emt 0:01:48]} 25. Rc1 {[%emt 0:00:10]} R1d2 {[%emt 0:06:46]} 26. Rc2 {
[%emt 0:00:10]} Rd1+ {[%emt 0:00:43]} 27. Rc1 {[%emt 0:00:10]} 1/2-1/2

[Event "48th Continental Open"]
[Site "Sturbridge, MA"]
[Date "2018.08.19"]
[Round "8.4"]
[White "Baryshpolets, Andrey"]
[Black "Mulyar, Michael"]
[Result "0-1"]
[ECO "D11"]
[WhiteElo "2609"]
[BlackElo "2374"]
[PlyCount "93"]
[EventDate "2018.08.??"]
[EventType "swiss"]
[EventRounds "9"]
[EventCountry "USA"]
[TimeControl "6000+10"]
[WhiteClock "0:01:07"]
[BlackClock "0:24:35"]

1. d4 {[%emt 0:00:10]} d5 {[%emt 0:00:29]} 2. c4 {[%emt 0:00:15]} c6 {[%emt 0:
00:15]} 3. Nf3 {[%emt 0:00:33]} Nf6 {[%emt 0:00:16]} 4. Qc2 {[%emt 0:01:13]}
dxc4 {[%emt 0:00:21]} 5. Qxc4 {[%emt 0:00:15]} Bf5 {[%emt 0:00:16]} 6. g3 {
[%emt 0:00:25]} e6 {[%emt 0:00:18]} 7. Bg2 {[%emt 0:00:12]} Be7 {[%emt 0:00:19]
} 8. O-O {[%emt 0:00:31]} O-O {[%emt 0:00:16]} 9. Nc3 {[%emt 0:05:44]} Nbd7 {
[%emt 0:00:20]} 10. Re1 {[%emt 0:00:16]} Ne4 {[%emt 0:04:07]} 11. Qb3 {[%emt 0:
01:26]} Qb6 {[%emt 0:00:52]} 12. Nh4 {[%emt 0:00:58]} Bxh4 {[%emt 0:01:32]} 13.
gxh4 {[%emt 0:03:50]} Ndf6 {[%emt 0:08:20]} 14. f3 {[%emt 0:11:47]} Nxc3 {
[%emt 0:02:42]} 15. bxc3 {[%emt 0:01:33]} Qc7 {[%emt 0:00:18]} 16. e4 {[%emt 0:
05:02]} Bg6 {[%emt 0:00:16]} 17. a4 {[%emt 0:05:11]} h6 {[%emt 0:00:47]} 18.
Be3 {[%emt 0:05:04]} Nh5 {[%emt 0:02:33]} 19. Qb2 {[%emt 0:02:09]} Nf4 {
[%emt 0:00:28]} 20. Qd2 {[%emt 0:14:05]} Nxg2 {[%emt 0:00:34]} 21. Qxg2 {
[%emt 0:00:21]} Qa5 {[%emt 0:01:38]} 22. c4 {[%emt 0:06:04]} Qh5 {[%emt 0:00:
42]} 23. Bf2 {[%emt 0:03:47]} e5 {[%emt 0:00:28]} 24. dxe5 {[%emt 0:05:33]}
Qxe5 {[%emt 0:00:23]} 25. Qg3 {[%emt 0:00:52]} Qe6 {[%emt 0:01:53]} 26. Rad1 {
[%emt 0:06:59]} Qxc4 {[%emt 0:08:04]} 27. f4 {[%emt 0:02:36]} Bh5 {[%emt 0:00:
15]} 28. Rd4 {[%emt 0:01:32]} Qa2 {[%emt 0:01:25]} 29. Rd7 {[%emt 0:01:54]}
Rad8 {[%emt 0:05:03]} 30. Rxb7 {[%emt 0:00:43]} Qxa4 {[%emt 0:02:07]} 31. Rxa7
{[%emt 0:02:09]} Qc2 {[%emt 0:04:45]} 32. Ra5 {[%emt 0:02:41]} Rd3 {[%emt 0:00:
16]} 33. Be3 {[%emt 0:00:44]} Rd1 {[%emt 0:00:21]} 34. Rc5 {[%emt 0:07:42]}
Rxe1+ {[%emt 0:02:14]} 35. Qxe1 {[%emt 0:00:14]} Qxe4 {[%emt 0:00:49]} 36. Re5
{[%emt 0:01:23]} Qg6+ {[%emt 0:00:46]} 37. Qg3 {[%emt 0:00:00]} Qb1+ {[%emt 0:
03:13]} 38. Kg2 {[%emt 0:00:10]} Be2 {[%emt 0:03:51]} 39. Qf2 {[%emt 0:00:00]}
Bc4 {[%emt 0:00:28]} 40. f5 {[%emt 0:00:25]} Ra8 {[%emt 0:07:12]} 41. Kg3 {
[%emt 0:00:00]} f6 {[%emt 0:07:49]} 42. Rc5 {[%emt 0:00:00]} Ra2 {[%emt 0:01:
44]} 43. Qf3 {[%emt 0:00:00]} Bd5 {[%emt 0:01:07]} 44. Rxd5 {[%emt 0:00:00]}
cxd5 {[%emt 0:00:14]} 45. Qxd5+ {[%emt 0:00:00]} Kh7 {[%emt 0:00:13]} 46. Kg4 {
[%emt 0:00:00]} Ra4+ {[%emt 0:00:56]} 47. Kg3 {[%emt 0:00:15]} 0-1